[Event "Danish Skakligaen 2024-25"]
[Site "Denmark"]
[Date "2024.11.03"]
[Round "2.2"]
[White "Thybo, Jesper Sondergaard"]
[Black "Pantzar, Milton"]
[Result "1/2-1/2"]
[ECO "E06"]
[WhiteElo "2549"]
[BlackElo "2453"]
[Annotator "RC"]
[PlyCount "85"]
[EventDate "2024.11.02"]
[EventType "team-tourn"]
[EventCountry "DEN"]
[SourceTitle "playchess.com"]
[Source "ChessBase"]
[SourceQuality "1"]
[TimeControl "40/5400+30:1800+30"]

1. d4 {[%emt 0:00:07]} d5 {[%emt 0:00:53]} 2. c4 {[%emt 0:00:18]} e6 {[%emt 0:00:14]} 3. Nf3 {[%emt 0:00:32]} Nf6 {[%emt 0:01:17]} 4. g3 {[%emt 0:00:13]} Be7 {[%emt 0:02:22]} 5. Bg2 {[%emt 0:00:07]} O-O {[%emt 0:00:09]} 6. O-O {[%emt 0:00:41]} c6 {[%emt 0:00:19]} 7. Nc3 {[%emt 0:00:35]} a5 {[%emt 0:00:27]} 8. a3 {[%emt 0:00:40]} b6 {[%emt 0:06:01]} 9. Re1 {[%emt 0:01:02]} Ne4 {[%emt 0:06:26]} 10. Qc2 {[%emt 0:06:45]} f5 {[%emt 0:06:25]} 11. Ne5 {[%emt 0:02:13]} Bb7 {[%emt 0:03:40]} 12. Na4 {[%emt 0:21:51]} b5 {[%emt 0:15:45]} 13. cxb5 {[%emt 0:01:17]} cxb5 {[%emt 0:00:06]} 14. Nc5 {[%emt 0:08:21]} Nxc5 {[%emt 0:04:18]} 15. dxc5 {[%emt 0:01:54]} Nc6 {[%emt 0:00:31]} 16. Nxc6 {[%emt 0:10:56]} Bxc6 {[%emt 0:00:07]} 17. Bd2 {[%emt 0:00:16]} Bf6 {[%emt 0:10:12]} 18. Rac1 {[%emt 0:02:21]} Qd7 {[%emt 0:01:26]} 19. Red1 {[%emt 0:03:20]} d4 {[%emt 0:08:20]} 20. Bxc6 {[%emt 0:03:47]} Qxc6 {[%emt 0:00:09]} 21. e3 {[%emt 0:00:39]} a4 {[%emt 0:05:49]} 22. exd4 {[%emt 0:02:59]} Bxd4 {[%emt 0:00:21]} 23. Bc3 {[%emt 0:00:16]} Bxc3 {[%emt 0:01:20]} 24. Qxc3 {[%emt 0:00:04]} Rfd8 {[%emt 0:01:00]} 25. Rd4 {[%emt 0:03:56]} Rxd4 {[%emt 0:05:52]} 26. Qxd4 {[%emt 0:00:06]} Rc8 {[%emt 0:00:10]} 27. h4 {[%emt 0:07:30]} h6 {[%emt 0:04:36]} 28. Rc3 {[%emt 0:01:09]} Rc7 {[%emt 0:03:59]} 29. Qd8+ {[%emt 0:02:51]} Kh7 {[%emt 0:03:34]} 30. Qd6 {[%emt 0:02:01]} Kg6 {[%emt 0:05:45]} 31. Re3 {[%emt 0:05:18]} Kf7 {[%emt 0:00:30]} 32. Qxc6 {[%emt 0:09:25]} Rxc6 {[%emt 0:00:04]} 33. Re5 {[%emt 0:00:03]} Kf6 {[%emt 0:01:53]} 34. f4 {[%emt 0:00:06]} g5 {[%emt 0:00:17]} 35. hxg5+ {[%emt 0:01:17]} hxg5 {[%emt 0:00:02]} 36. Kf2 {[%emt 0:00:07]} gxf4 {[%emt 0:02:50]} 37. gxf4 {[%emt 0:00:05]} Kg6 {[%emt 0:00:42]} 38. Ke3 {[%emt 0:00:38]} Kh5 {[%emt 0:00:28]} 39. Kf3 {[%emt 0:00:48]} Kg6 {[%emt 0:00:31]} 40. Kg3 {[%emt 0:02:08]} Kf6 {[%emt 0:00:37]} 41. Kf2 {[%emt 0:31:05]} Kg6 {[%emt 0:06:36]} 42. Kf3 {[%emt 0:00:00]} Kh5 {[%emt 0:02:07]} 43. Kg3 {[%emt 0:00:00]} 1/2-1/2

[Event "Danish Skakligaen 2024-25"]
[Site "Denmark"]
[Date "2024.11.03"]
[Round "2.2"]
[White "Olsen, Filip Boe"]
[Black "Vasli, Aref"]
[Result "1-0"]
[ECO "A67"]
[WhiteElo "2470"]
[BlackElo "2410"]
[Annotator "TA"]
[PlyCount "65"]
[EventDate "2024.11.02"]
[EventType "team-tourn"]
[EventCountry "DEN"]
[SourceTitle "playchess.com"]
[Source "ChessBase"]
[SourceQuality "1"]
[TimeControl "40/5400+30:1800+30"]

{[%evp 21,65,19,25,0,0,0,33,7,61,62,83,70,160,150,162,153,178,145,291,268,314,323,457,186,183,181,303,319,291,241,211,218,516,506,501,469,675,637,649,686,683,678,1134,1020,1293,1121]} 1. d4 {[%emt 0:00:06]} Nf6 {[%emt 0:00:08]} 2. c4 {[%emt 0:00:09]} e6 {[%emt 0:00:52]} 3. Nc3 {[%emt 0:00:09]} c5 {[%emt 0:00:09]} 4. d5 {[%emt 0:00:07]} exd5 {[%emt 0:00:06]} 5. cxd5 {[%emt 0:00:08]} d6 {[%emt 0:00:07]} 6. e4 {[%emt 0:00:08]} g6 {[%emt 0:00:08]} 7. f4 {[%emt 0:00:09]} Bg7 {[%emt 0:00:21]} 8. Bb5+ {[%emt 0:00:14]} Nfd7 {[%emt 0:00:27]} 9. a4 {[%emt 0:00:42]} O-O {[%emt 0:00:07]} 10. Nf3 {[%emt 0:00:17]} Na6 {[%emt 0:03:02]} 11. O-O {[%emt 0:01:00]} Nb4 {[%emt 0:03:44]} 12. h3 {[%emt 0:02:14]} a6 {[%emt 0:02:14]} 13. Bc4 {[%emt 0:00:58]} Nb6 {[%emt 0:13:47]} 14. Be2 {[%emt 0:05:00] White is slightly better.} a5 {[%emt 0:02:35]} (14... f5 $6 15. e5 $16) (14... Re8 $11) 15. Be3 $14 {[%emt 0:13:49]} Re8 {[%emt 0:08:03]} 16. Bf2 {[%emt 0:00:52]} Nd7 {[%emt 0:12:21]} ({Black should try} 16... c4 $14) 17. Bb5 $16 {[%emt 0:07:55]} Rf8 {[%emt 0:05:45]} 18. Qd2 {[%emt 0:19:46]} Qc7 {[%emt 0:07:07]} 19. b3 {[%emt 0:06:08]} c4 {[%emt 0:07:17]} (19... Nb6 $16 20. Rac1 f6) 20. Bxc4 $18 {[%emt 0:04:41]} Nb6 {[%emt 0:02:46]} 21. Nb5 {[%emt 0:02:00][%cal Bc3b5,Bb5d6,Bd6e4,Be4c5][%mdl 32]} Nxc4 {[%emt 0:05:15]} (21... Qd8 {was called for.} 22. Rae1 Rb8) 22. bxc4 {[%emt 0:03:48]} (22. Nxc7 Nxd2 23. Nxd2 (23. Nxa8 Nxe4 24. Rad1 Bxh3 $11) 23... Bxa1 24. Rxa1 (24. Nxa8 Bc3 $18) 24... Rb8 $18) (22. Qxb4 $142 axb4 23. Nxc7 Bxa1 24. Nxa8 (24. Rxa1 Bf5 $18)) 22... Qxc4 {[%emt 0:00:38]} 23. Nxd6 {[%emt 0:00:21]} Qa6 {[%emt 0:05:22]} (23... Qd3 $142 24. Qxd3 Nxd3) 24. e5 {[%emt 0:02:45]} Bd7 {[%emt 0:02:59] Black is weak on the dark squares} 25. Ra3 {[%emt 0:02:44]} f6 {[%emt 0:02:19]} 26. Ne4 {[%emt 0:06:48] [#] Nc5 is the strong threat.} fxe5 $2 {[%emt 0:01:05]} (26... Qc4 {is a better defense.}) 27. Nc5 {[%emt 0:00:55] Excellent horsemanship. White is clearly winning.} ({Less strong is} 27. Nxe5 Bf5 $16) 27... Qd6 {[%emt 0:00:55]} 28. fxe5 {[%emt 0:00:16][%cal Bf4e5,Be5e6][%mdl 32]} (28. Nxb7 Qxd5 29. Qxd5+ Nxd5 $16) 28... Qc7 {[%emt 0:08:01]} (28... Qxd5 $142 29. Qxd5+ (29. Nxd7 Qxd2 30. Nxd2 Rf7 $18) 29... Nxd5 30. Nxd7 Rf7) 29. e6 {[%emt 0:00:31]} Be8 {[%emt 0:01:25]} 30. d6 {[%emt 0:00:16]} Qc6 {[%emt 0:00:09]} 31. d7 {[%emt 0:00:14][%cal Oe6e7] [#] aiming for e7!} Nd5 {[%emt 0:01:02]} 32. Rd3 {[%emt 0:02:49]} Bxd7 {[%emt 0:03:09]} 33. Rxd5 {[%emt 0:01:29] White took control after the opening.   Weighted Error Value: White=0.25 (precise) /Black=0.64.  Mistake:       	White=1     	Black=7      Inaccurate:     	White=1     	Black=1      OK:         	White=10    	Black=4      Best:        	White=1     	Black=2} 1-0

[Event "Danish Skakligaen 2024-25"]
[Site "Denmark"]
[Date "2024.11.03"]
[Round "2.2"]
[White "Kistrup, Nicolai"]
[Black "Rasmussen, Karsten"]
[Result "0-1"]
[ECO "B12"]
[WhiteElo "2420"]
[BlackElo "2391"]
[Annotator "TA"]
[PlyCount "70"]
[EventDate "2024.11.02"]
[EventType "team-tourn"]
[EventCountry "DEN"]
[SourceTitle "playchess.com"]
[Source "ChessBase"]
[SourceQuality "1"]
[TimeControl "40/5400+30:1800+30"]

{[%evp 14,70,18,31,50,50,61,44,48,42,44,42,53,45,33,31,50,54,80,83,135,116,149,76,81,66,82,82,112,116,139,135,145,137,135,137,144,95,123,138,141,-112,-111,-105,-110,-115,-111,-101,-115,-29988,-29989,-29990,-29991,-29991,-29992,-29992,-29993,-29993,-595]} 1. e4 {[%emt 0:01:09]} c6 {[%emt 0:01:23]} 2. d4 {[%emt 0:00:29]} d5 {[%emt 0:00:04]} 3. e5 {[%emt 0:00:04]} Bf5 {[%emt 0:00:08]} 4. Nf3 {[%emt 0:00:20]} e6 {[%emt 0:00:07]} 5. Be2 {[%emt 0:00:04]} Nd7 {[%emt 0:02:14]} 6. O-O {[%emt 0:00:41]} Ne7 {[%emt 0:00:21]} 7. c3 {[%emt 0:00:16]} c5 {[%emt 0:00:56]} 8. dxc5 {[%emt 0:00:42]} Nc6 {[%emt 0:24:01]} 9. b4 {[%emt 0:09:58]} Ndxe5 {[%emt 0:10:20]} 10. Nd4 {[%emt 0:04:50]} Be7 {[%emt 0:02:08] White is slightly better.} 11. Nxf5 {[%emt 0:22:15]} exf5 {[%emt 0:01:47]} 12. Qc2 {[%emt 0:02:59]} Qd7 {[%emt 0:01:27]} 13. Rd1 {[%emt 0:02:32]} O-O {[%emt 0:05:19]} 14. Nd2 {[%emt 0:03:42]} Bf6 {[%emt 0:17:33]} 15. Nb3 {[%emt 0:03:36]} a5 {[%emt 0:04:04]} 16. b5 {[%emt 0:03:16]} Ne7 {[%emt 0:00:09]} ({Better is} 16... a4) 17. a4 $1 $36 {[%emt 0:05:06][%mdl 2048] Keeping Black busy.} Rfe8 {[%emt 0:04:20]} 18. Be3 {[%emt 0:17:45]} (18. f4 $142 $1 {[%cal Rf4e5]} N5g6 19. Be3) 18... N7g6 {[%emt 0:02:49] Strongly threatening ...f4.} 19. Bd4 {[%emt 0:04:55]} f4 {[%emt 0:02:10][%cal Of4f3]} 20. f3 {[%emt 0:05:19]} Nh4 {[%emt 0:01:28]} 21. Bf2 {[%emt 0:01:13]} Nf5 {[%emt 0:03:50] [#]} 22. c4 $1 {[%emt 0:01:40]} d4 {[%emt 0:06:21]} 23. Nxd4 {[%emt 0:02:13]} (23. Bxd4 $6 Nxd4 24. Nxd4 Qe7 $11) 23... Nxd4 {[%emt 0:00:10]} 24. Bxd4 {[%emt 0:01:54]} Nxf3+ {[%emt 0:00:08]} 25. Bxf3 {[%emt 0:01:16]} Bxd4+ {[%emt 0:00:04]} 26. Kf1 {[%emt 0:00:45] aiming for c6.} Rad8 {[%emt 0:00:13] [#]} 27. Ra3 $2 {[%emt 0:02:51][%mdl 8192]} (27. c6 $1 $16 {[%cal Rc6d7] is necessary to keep the advantage.} Qe6 (27... bxc6 $2 28. Bxc6 Qc7 29. Rxd4 $18) 28. c7) 27... Qe7 $17 {[%emt 0:01:43]} 28. Rad3 {[%emt 0:01:00]} Bxc5 {[%emt 0:03:50]} (28... Qxc5 $6 29. Bxb7 g6 30. Qa2 $11) 29. Rxd8 {[%emt 0:00:27]} Rxd8 {[%emt 0:00:03]} 30. Rxd8+ {[%emt 0:00:45]} Qxd8 {[%emt 0:00:04]} 31. Bxb7 $2 {[%emt 0:01:06][%mdl 8192] KQB-KQB. Loses the game.} (31. Qd1 $17 Qc7 32. Qe2) 31... Qd4 {[%emt 0:01:02] Black mates.} 32. Bf3 {[%emt 0:00:42]} Qg1+ {[%emt 0:02:38]} 33. Ke2 {[%emt 0:00:03]} Qf2+ {[%emt 0:00:06]} ({Stronger than} 33... Qxh2 34. Qe4 Qg1 35. Qe8+ (35. Qxf4 Qf2+ 36. Kd3 Qf1+ 37. Kc2 Qa1 $11) 35... Bf8 36. Bd5 f3+ 37. Kxf3 (37. gxf3 Qg6 $11) 37... Qf1+ 38. Kg3 $11) 34. Kd1 {[%emt 0:00:07]} Qf1+ {[%emt 0:00:15]} 35. Kd2 {[%emt 0:00:05]} Bb4+ {[%emt 0:00:31] Weighted Error Value: White=0.45/Black=0.09 (flawless) .  Loses game:     	White=1     	---        Mistake:       	White=2     	Black=1      Inaccurate:     	White=1     	Black=2      OK:         	White=13    	Black=10     Best:        	White=1     	Black=2      Strong:       	White=2     	---} 0-1

[Event "Danish Skakligaen 2024-25"]
[Site "Denmark"]
[Date "2024.11.03"]
[Round "2.2"]
[White "Brynell, Stellan"]
[Black "Klitgaard, Thomas"]
[Result "1-0"]
[ECO "E18"]
[WhiteElo "2368"]
[BlackElo "2183"]
[Annotator "RC"]
[PlyCount "111"]
[EventDate "2024.11.02"]
[EventType "team-tourn"]
[EventCountry "DEN"]
[SourceTitle "playchess.com"]
[Source "ChessBase"]
[SourceQuality "1"]
[TimeControl "40/5400+30:1800+30"]

1. d4 {[%emt 0:00:06]} e6 {[%emt 0:00:08]} 2. Nf3 {[%emt 0:00:36]} b6 {[%emt 0:00:36]} 3. g3 {[%emt 0:02:14]} Bb7 {[%emt 0:00:50]} 4. Bg2 {[%emt 0:00:05]} Nf6 {[%emt 0:03:35]} 5. c4 {[%emt 0:00:36]} Be7 {[%emt 0:01:01]} 6. O-O {[%emt 0:00:31]} O-O {[%emt 0:00:07]} 7. Nc3 {[%emt 0:00:10]} Ne4 {[%emt 0:00:38]} 8. Bd2 {[%emt 0:01:21]} Nxd2 {[%emt 0:01:57]} 9. Qxd2 {[%emt 0:00:06]} Bf6 {[%emt 0:05:33]} 10. e4 {[%emt 0:00:29]} g6 {[%emt 0:00:36]} 11. Rad1 {[%emt 0:04:40]} d6 {[%emt 0:04:31]} 12. Rfe1 {[%emt 0:00:32]} Bg7 {[%emt 0:07:08]} 13. h4 {[%emt 0:03:16]} Qe7 {[%emt 0:13:09]} 14. d5 {[%emt 0:10:19]} e5 {[%emt 0:05:25]} 15. Bh3 {[%emt 0:02:37]} Bc8 {[%emt 0:02:02]} 16. Bxc8 {[%emt 0:00:32]} Rxc8 {[%emt 0:00:08]} 17. Kg2 {[%emt 0:01:36]} Nd7 {[%emt 0:01:32]} 18. h5 {[%emt 0:03:13]} Nf6 {[%emt 0:07:48]} 19. hxg6 {[%emt 0:00:48]} hxg6 {[%emt 0:00:27]} 20. Rh1 {[%emt 0:00:19]} Kf8 {[%emt 0:06:44]} 21. Ne1 {[%emt 0:10:29]} Qd7 {[%emt 0:02:27]} 22. Nd3 {[%emt 0:00:31]} a5 {[%emt 0:05:56]} 23. f3 {[%emt 0:07:16]} Ke7 {[%emt 0:03:12]} 24. Nb5 {[%emt 0:02:08]} Rh8 {[%emt 0:01:59]} 25. Qg5 {[%emt 0:00:46]} Rxh1 {[%emt 0:00:49]} 26. Rxh1 {[%emt 0:00:02]} Kf8 {[%emt 0:01:06]} 27. Nf2 {[%emt 0:05:40]} Qe7 {[%emt 0:07:01]} 28. Qd2 {[%emt 0:05:57]} Qd7 {[%emt 0:01:41]} 29. Nd3 {[%emt 0:07:24]} Ng8 {[%emt 0:02:19]} 30. Rh3 {[%emt 0:03:30]} Nf6 {[%emt 0:01:35]} 31. Nf2 {[%emt 0:00:55]} Qe7 {[%emt 0:01:01]} 32. Nc3 {[%emt 0:03:59]} Nd7 {[%emt 0:01:01]} 33. Ng4 {[%emt 0:00:48]} Nf6 {[%emt 0:04:34]} 34. Nf2 {[%emt 0:04:19]} Nd7 {[%emt 0:00:21]} 35. Nb5 {[%emt 0:01:13]} Nf6 {[%emt 0:00:08]} 36. Rh2 {[%emt 0:00:40]} Qd7 {[%emt 0:00:42]} 37. Qg5 {[%emt 0:00:23]} Qe7 {[%emt 0:00:19]} 38. Qh4 {[%emt 0:00:17]} Ne8 {[%emt 0:01:25]} 39. Qxe7+ {[%emt 0:00:27]} Kxe7 {[%emt 0:00:08]} 40. Kf1 {[%emt 0:01:10]} Kf8 {[%emt 0:04:45]} 41. Ke2 {[%emt 0:31:04]} Ke7 {[%emt 0:30:22]} 42. Kd3 {[%emt 0:01:01]} Kf8 {[%emt 0:01:19]} 43. Ng4 {[%emt 0:02:55]} Rd8 {[%emt 0:00:00]} 44. a3 {[%emt 0:00:00]} Rd7 {[%emt 0:00:00]} 45. b4 {[%emt 0:00:00]} axb4 {[%emt 0:00:00]} 46. axb4 {[%emt 0:00:00]} Ke7 {[%emt 0:00:00]} 47. Ra2 {[%emt 0:00:00]} f5 {[%emt 0:00:00]} 48. Nf2 {[%emt 0:00:00]} Bf6 {[%emt 0:00:00]} 49. Ra7 {[%emt 0:00:00]} Kf7 {[%emt 0:00:00]} 50. g4 {[%emt 0:01:31]} f4 {[%emt 0:00:00]} 51. c5 {[%emt 0:03:55]} bxc5 {[%emt 0:00:00]} 52. bxc5 {[%emt 0:00:06]} dxc5 {[%emt 0:03:46]} 53. Kc4 {[%emt 0:00:09]} Bh4 {[%emt 0:03:00]} 54. Nd3 {[%emt 0:00:18]} Re7 {[%emt 0:00:10]} 55. Kxc5 {[%emt 0:02:02]} Nd6 {[%emt 0:02:05]} 56. Rxc7 {[%emt 0:03:51]} 1-0

[Event "Danish Skakligaen 2024-25"]
[Site "Denmark"]
[Date "2024.11.03"]
[Round "2.2"]
[White "Skonnord, Uno"]
[Black "Fries-Nielsen, Jens Ove"]
[Result "0-1"]
[ECO "B01"]
[WhiteElo "2162"]
[BlackElo "2334"]
[Annotator "RC"]
[PlyCount "152"]
[EventDate "2024.11.02"]
[EventType "team-tourn"]
[EventCountry "DEN"]
[SourceTitle "playchess.com"]
[Source "ChessBase"]
[SourceQuality "1"]
[TimeControl "40/5400+30:1800+30"]

1. e4 {[%emt 0:00:05]} d5 {[%emt 0:01:00]} 2. exd5 {[%emt 0:00:13]} Qxd5 {[%emt 0:00:12]} 3. Nc3 {[%emt 0:00:17]} Qd8 {[%emt 0:00:22]} 4. d4 {[%emt 0:02:08]} Nf6 {[%emt 0:01:56]} 5. Nf3 {[%emt 0:02:56]} a6 {[%emt 0:00:53]} 6. Bd3 {[%emt 0:06:05]} Nc6 {[%emt 0:03:19]} 7. h3 {[%emt 0:00:21]} g6 {[%emt 0:00:44]} 8. O-O {[%emt 0:04:58]} Bg7 {[%emt 0:00:11]} 9. a3 {[%emt 0:13:27]} O-O {[%emt 0:00:20]} 10. Bc4 {[%emt 0:00:04]} Ne8 {[%emt 0:03:11]} 11. Ne2 {[%emt 0:12:49]} Nd6 {[%emt 0:00:43]} 12. Ba2 {[%emt 0:01:07]} e5 {[%emt 0:03:28]} 13. c3 {[%emt 0:07:33]} e4 {[%emt 0:04:41]} 14. Nh2 {[%emt 0:00:27]} Kh8 {[%emt 0:00:43]} 15. f3 {[%emt 0:14:09]} f5 {[%emt 0:05:45]} 16. fxe4 {[%emt 0:06:54]} Nxe4 {[%emt 0:00:21]} 17. Nf4 {[%emt 0:00:39]} Nxd4 {[%emt 0:01:55]} 18. Be3 {[%emt 0:01:47]} Nc6 {[%emt 0:01:16]} 19. Qc2 {[%emt 0:01:05]} Bd7 {[%emt 0:05:09]} 20. Rad1 {[%emt 0:00:31]} Qe8 {[%emt 0:00:44]} 21. Nd5 {[%emt 0:00:50]} Rc8 {[%emt 0:00:29]} 22. Rfe1 {[%emt 0:02:53]} Be6 {[%emt 0:00:50]} 23. Nf3 {[%emt 0:00:40]} Qf7 {[%emt 0:01:59]} 24. c4 {[%emt 0:04:50]} h6 {[%emt 0:10:06]} 25. b4 {[%emt 0:00:49]} g5 {[%emt 0:05:54]} 26. Nd4 {[%emt 0:02:18]} Nxd4 {[%emt 0:01:56]} 27. Bxd4 {[%emt 0:00:08]} Bxd4+ {[%emt 0:00:27]} 28. Rxd4 {[%emt 0:00:21]} Qg7 {[%emt 0:00:55]} 29. Rd3 {[%emt 0:02:48]} Rcd8 {[%emt 0:05:22]} 30. Rb1 {[%emt 0:05:01]} c6 {[%emt 0:00:53]} 31. Ne3 {[%emt 0:00:33]} Rd4 {[%emt 0:08:29]} 32. Nf1 {[%emt 0:04:29]} Rfd8 {[%emt 0:03:14]} 33. Rbd1 {[%emt 0:01:40]} c5 {[%emt 0:01:08]} 34. bxc5 {[%emt 0:01:28]} Nxc5 {[%emt 0:00:24]} 35. Rxd4 {[%emt 0:00:11]} Rxd4 {[%emt 0:00:02]} 36. Re1 {[%emt 0:00:51]} Qd7 {[%emt 0:05:41]} 37. Qc3 {[%emt 0:00:15]} Ne4 {[%emt 0:01:32]} 38. Qb4 {[%emt 0:00:34]} Kg8 {[%emt 0:02:06]} 39. Qb6 {[%emt 0:00:56]} Rd6 {[%emt 0:01:20]} 40. Qb2 {[%emt 0:00:38]} Qg7 {[%emt 0:02:59]} 41. Qxg7+ {[%emt 0:03:33]} Kxg7 {[%emt 0:00:02]} 42. Bb1 {[%emt 0:07:26]} Nc3 {[%emt 0:04:12]} 43. c5 {[%emt 0:00:44]} Rc6 {[%emt 0:00:09]} 44. Ng3 {[%emt 0:04:29]} Kf6 {[%emt 0:03:09]} 45. Nh5+ {[%emt 0:01:25]} Kf7 {[%emt 0:00:18]} 46. Ng3 {[%emt 0:00:26]} Rxc5 {[%emt 0:00:37]} 47. Bd3 {[%emt 0:01:53]} b5 {[%emt 0:02:07]} 48. Rf1 {[%emt 0:00:39]} f4 {[%emt 0:00:28]} 49. Ne2 {[%emt 0:04:34]} Nxe2+ {[%emt 0:00:44]} 50. Bxe2 {[%emt 0:00:08]} Rc2 {[%emt 0:01:09]} 51. Bh5+ {[%emt 0:03:05]} Kf6 {[%emt 0:00:46]} 52. Rd1 {[%emt 0:00:09]} Ke5 {[%emt 0:04:24]} 53. Re1+ {[%emt 0:00:38]} Kd6 {[%emt 0:00:25]} 54. Rd1+ {[%emt 0:00:12]} Kc5 {[%emt 0:00:31]} 55. Bf3 {[%emt 0:00:30]} a5 {[%emt 0:00:27]} 56. Rd8 {[%emt 0:02:49]} b4 {[%emt 0:03:14]} 57. Re8 {[%emt 0:02:38]} b3 {[%emt 0:08:10]} 58. Rxe6 {[%emt 0:00:13]} b2 59. Be4 {[%emt 0:01:51]} Re2 {[%emt 0:04:47]} 60. Rc6+ {[%emt 0:00:20]} Kb5 {[%emt 0:01:30]} 61. a4+ {[%emt 0:00:03]} Kxa4 {[%emt 0:01:38]} 62. Bf5 {[%emt 0:01:10]} Re1+ {[%emt 0:06:05]} 63. Kf2 {[%emt 0:00:16]} b1=Q {[%emt 0:00:13]} 64. Bxb1 {[%emt 0:00:07]} Rxb1 {[%emt 0:00:02]} 65. Rxh6 {[%emt 0:00:25]} Rb5 {[%emt 0:00:03]} 66. Rh5 {[%emt 0:03:17]} Kb4 {[%emt 0:07:45]} 67. h4 {[%emt 0:00:12]} a4 {[%emt 0:00:27]} 68. hxg5 {[%emt 0:00:44]} a3 {[%emt 0:00:18]} 69. Rh1 {[%emt 0:00:42]} Rxg5 {[%emt 0:02:09]} 70. Kf3 {[%emt 0:00:31]} a2 {[%emt 0:00:50]} 71. Rg1 {[%emt 0:00:31]} Rf5 {[%emt 0:01:26]} 72. Ke4 {[%emt 0:00:28]} Rf8 {[%emt 0:00:05]} 73. Rf1 {[%emt 0:00:15]} Re8+ {[%emt 0:00:20]} 74. Kf5 {[%emt 0:00:42]} Kb3 {[%emt 0:01:44]} 75. Kg4 {[%emt 0:00:11]} Re2 {[%emt 0:00:36]} 76. Kh3 {[%emt 0:00:53]} Kb2 0-1

[Event "Danish Skakligaen 2024-25"]
[Site "Denmark"]
[Date "2024.11.03"]
[Round "2.3"]
[White "Chatalbashev, Boris"]
[Black "Christensen, Stefan"]
[Result "1-0"]
[ECO "E21"]
[WhiteElo "2476"]
[BlackElo "2199"]
[Annotator "TA"]
[PlyCount "91"]
[EventDate "2024.11.02"]
[EventType "team-tourn"]
[EventCountry "DEN"]
[SourceTitle "playchess.com"]
[Source "ChessBase"]
[SourceQuality "1"]
[TimeControl "40/5400+30:1800+30"]

{[%evp 22,91,0,14,30,27,34,29,29,27,37,27,37,1,23,0,6,0,0,7,4,4,33,37,30,10,5,0,0,0,46,60,70,68,64,11,123,113,104,123,130,146,156,144,139,148,129,148,132,137,256,252,286,264,438,439,528,537,732,720,29977,29978,6407,1404,1248,1078,1086,1022,29989,29990,29990,29991]} 1. d4 {[%emt 0:00:04]} Nf6 {[%emt 0:00:20]} 2. c4 {[%emt 0:00:06]} e6 {[%emt 0:00:08]} 3. Nf3 {[%emt 0:00:42]} b6 {[%emt 0:00:32]} 4. Nc3 {[%emt 0:00:09]} Bb4 {[%emt 0:01:01]} 5. e3 {[%emt 0:00:08]} Bb7 {[%emt 0:03:04]} 6. Bd3 {[%emt 0:00:08]} c5 {[%emt 0:03:05]} 7. O-O {[%emt 0:00:10]} O-O {[%emt 0:01:30]} 8. Na4 {[%emt 0:00:09]} cxd4 {[%emt 0:01:23]} 9. a3 {[%emt 0:00:09]} Be7 {[%emt 0:00:36]} 10. exd4 {[%emt 0:00:07]} d6 {[%emt 0:01:48]} 11. Re1 {[%emt 0:02:31]} Nbd7 {[%emt 0:00:48]} 12. b4 {[%emt 0:08:30]} Re8 {[%emt 0:02:50]} 13. Nc3 {[%emt 0:02:28]} Rc8 {[%emt 0:03:00]} 14. h3 {[%emt 0:02:04]} Qc7 {[%emt 0:01:48] White has an edge.} 15. Bf4 {[%emt 0:03:38][%cal Od4d5]} Qb8 {[%emt 0:09:31]} 16. Bh2 {[%emt 0:02:03]} a6 {[%emt 0:03:34]} 17. Re3 {[%emt 0:16:48]} Qa8 {[%emt 0:01:30]} 18. Qb3 {[%emt 0:01:53]} Bf8 {[%emt 0:04:45]} 19. Rae1 {[%emt 0:02:37]} h6 {[%emt 0:01:06]} 20. Bf1 {[%emt 0:06:28]} Rcd8 {[%emt 0:01:53]} 21. Nd2 {[%emt 0:03:47][%cal Bf3d2,Bd2b3,Bb3a5][%mdl 32]} Nb8 {[%emt 0:06:41][%cal Bd7b8,Bb8c6,Bc6e7,Be7f5][%mdl 32]} 22. Qb2 {[%emt 0:08:49]} Nc6 {[%emt 0:07:13]} 23. Nb3 {[%emt 0:01:19]} Ne7 {[%emt 0:05:18]} 24. a4 {[%emt 0:03:39]} Nf5 {[%emt 0:07:30]} 25. Rd3 {[%emt 0:00:24]} Qa7 {[%emt 0:01:46]} (25... Ne4 $11 {feels stronger.}) 26. a5 $14 {[%emt 0:02:05]} bxa5 {[%emt 0:02:51]} 27. Nxa5 {[%emt 0:00:07]} Ba8 {[%emt 0:00:40]} 28. c5 {[%emt 0:00:35]} (28. Red1 $14) 28... dxc5 {[%emt 0:03:53]} (28... Rb8 $11 {remains equal.}) 29. dxc5 $16 {[%emt 0:01:27] White leaves nothing to chance now.} Rxd3 {[%emt 0:05:23]} 30. Bxd3 {[%emt 0:00:07]} Nh4 {[%emt 0:02:42] [#]} 31. Bf1 {[%emt 0:03:07]} Nd5 {[%emt 0:05:38]} 32. Nxd5 {[%emt 0:08:55]} Bxd5 {[%emt 0:00:12]} 33. Qd4 {[%emt 0:00:34]} Be7 {[%emt 0:03:30]} 34. Be5 {[%emt 0:05:46]} Qa8 {[%emt 0:02:09][%cal Rd5g2]} 35. Qg4 {[%emt 0:02:09][%csl Ge5][%cal Rg4g7] White is more active.} (35. Bxg7 Bxg2 (35... Nxg2 $2 36. Bxh6 Bf8 37. Qg4+ Kh7 38. Bxf8 $18) (35... Nf5 $2 36. Qc3 $19) 36. Be2 (36. Bxh6 $2 {loses.} Nf3+ 37. Kxg2 Nxd4+ $19) 36... Bf1 $19 (36... Bxh3 $2 37. c6 $19)) 35... g6 {[%emt 0:00:59]} (35... Ng6 $16 {keeps fighting.}) 36. Bc3 $40 {[%emt 0:01:46][%mdl 128] aiming for Qd4. White goes for the king.} Kh7 {[%emt 0:01:49]} 37. Nc4 {[%emt 0:01:51]} Bxc4 $2 {[%emt 0:04:48]} (37... Qb7 {was called for.} 38. Ra1 Nf5) 38. Qxc4 {[%emt 0:00:08]} a5 {[%emt 0:01:13][%cal Ba6a5,Ba5a4,Ba4a3][%mdl 32]} 39. b5 {[%emt 0:04:30]} a4 {[%emt 0:00:21]} 40. c6 {[%emt 0:02:08][%cal Oe1e6] Hoping for Rxe6!} a3 {[%emt 0:00:59] [#]} 41. Rxe6 $1 {[%emt 0:35:13][%mdl 512]} Nf5 {[%emt 0:04:17]} 42. Re1 {[%emt 0:00:00]} (42. Rxg6 $142 Rf8 43. Rg4) 42... Nd6 {[%emt 0:05:18]} 43. Qd4 {[%emt 0:00:00]} Nf5 {[%emt 0:02:04] Repels Qg7+} 44. Qd5 {[%emt 0:00:00] Black is weak on the light squares} Kg8 {[%emt 0:04:33]} 45. Bc4 {[%emt 0:00:00][%csl Gc4][%cal Rd5f7]} Rf8 {[%emt 0:02:04] [#]} 46. Rxe7 $1 {[%emt 0:00:00][%mdl 512] Weighted Error Value: White=0.07 (flawless) /Black=0.65.  Mistake:       	White=1     	Black=4      Inaccurate:     	White=1     	Black=3      OK:         	White=11    	Black=12     Best:        	---       	Black=1} 1-0